[Event "Titled Tuesday Blitz November 16 2021"]
[White "Aldokhin, Ivan"]
[Black "Perez Ponsa, Federico"]
[WhiteFideId "24115720"]
[BlackFideId "117927"]
[WhiteElo "2231"]
[BlackElo "2672"]
[Result "0-1"]
[Round "02"]
[TimeControl "180+1"]
[Date "2021.11.16"]
[WhiteClock "0:00:01"]
[BlackClock "0:00:22"]

1. e4 {[%clk 0:03:00]}  c5 {[%clk 0:02:52]} 2. Nf3 {[%clk 0:03:01]}  d6 {[%clk 0:02:52]} 3. d4 {[%clk 0:03:01]}  cxd4 {[%clk 0:02:53]} 4. Nxd4 {[%clk 0:03:02]}  Nf6 {[%clk 0:02:50]} 5. Nc3 {[%clk 0:03:02]}  a6 {[%clk 0:02:50]} 6. h3 {[%clk 0:03:02]}  e6 {[%clk 0:02:50]} 7. g4 {[%clk 0:03:01]}  h6 {[%clk 0:02:50]} 8. Bg2 {[%clk 0:03:02]}  Be7 {[%clk 0:02:47]} 9. O-O {[%clk 0:03:01]}  Qc7 {[%clk 0:02:40]} 10. f4 {[%clk 0:03:01]}  Nc6 {[%clk 0:02:39]} 11. Nde2 {[%clk 0:03:01]}  Rb8 {[%clk 0:02:01]} 12. Ng3 {[%clk 0:02:49]}  b5 {[%clk 0:01:54]} 13. g5 {[%clk 0:02:24]}  hxg5 {[%clk 0:01:55]} 14. fxg5 {[%clk 0:02:24]}  Nd7 {[%clk 0:01:55]} 15. Nf5 {[%clk 0:02:07]}  Bf8 {[%clk 0:01:46]} 16. Bf4 {[%clk 0:01:47]}  Nde5 {[%clk 0:01:21]} 17. Ne3 {[%clk 0:01:45]}  b4 {[%clk 0:01:18]} 18. Ne2 {[%clk 0:01:30]}  Ng6 {[%clk 0:01:16]} 19. Bg3 {[%clk 0:01:22]}  Nce5 {[%clk 0:01:17]} 20. Nf4 {[%clk 0:01:14]}  Nh4 {[%clk 0:01:06]} 21. Bh1 {[%clk 0:01:14]}  Bb7 {[%clk 0:01:06]} 22. Qe2 {[%clk 0:00:57]}  Be7 {[%clk 0:01:04]} 23. Nh5 {[%clk 0:00:46]}  Bxg5 {[%clk 0:00:53]} 24. Nxg7+ {[%clk 0:00:40]}  Ke7 {[%clk 0:00:53]} 25. Kh2 {[%clk 0:00:14]}  Rbg8 {[%clk 0:00:51]} 26. Bxh4 {[%clk 0:00:14]}  Bxh4 {[%clk 0:00:37]} 27. Ngf5+ {[%clk 0:00:15]}  exf5 {[%clk 0:00:36]} 28. Nxf5+ {[%clk 0:00:14]}  Kf8 {[%clk 0:00:35]} 29. Rad1 {[%clk 0:00:12]}  Be7 {[%clk 0:00:31]} 30. Rf4 {[%clk 0:00:03]}  Bg5 {[%clk 0:00:26]} 31. Rf2 {[%clk 0:00:02]}  d5 {[%clk 0:00:27]} 32. h4 {[%clk 0:00:01]}  Bxh4 {[%clk 0:00:23]} 33. Rf4 {[%clk 0:00:01]}  Bg5+ {[%clk 0:00:22]} 0-1


[Site "https://www.chess.com"]

[Event "Titled Tuesday Blitz November 16 2021"]
[White "Bortnyk, Olexandr"]
[Black "Korchmar, Vasiliy"]
[WhiteFideId "14120828"]
[BlackFideId "24131750"]
[WhiteElo "2723"]
[BlackElo "2370"]
[Result "1-0"]
[Round "02"]
[TimeControl "180+1"]
[Date "2021.11.16"]
[WhiteClock "0:00:05"]
[BlackClock "0:00:02"]

1. d4 {[%clk 0:03:00]}  Nf6 {[%clk 0:02:59]} 2. Bf4 {[%clk 0:03:00]}  d5 {[%clk 0:02:59]} 3. e3 {[%clk 0:03:00]}  c5 {[%clk 0:02:59]} 4. Nf3 {[%clk 0:03:01]}  Nc6 {[%clk 0:02:59]} 5. Nbd2 {[%clk 0:02:38]}  cxd4 {[%clk 0:02:58]} 6. exd4 {[%clk 0:02:37]}  Qb6 {[%clk 0:02:58]} 7. c3 {[%clk 0:02:25]}  Qxb2 {[%clk 0:02:54]} 8. Nb3 {[%clk 0:01:50]}  Ne4 {[%clk 0:02:33]} 9. Nfd2 {[%clk 0:01:44]}  Nxc3 {[%clk 0:02:10]} 10. Qc1 {[%clk 0:01:14]}  Qxc1+ {[%clk 0:02:09]} 11. Rxc1 {[%clk 0:01:15]}  Nxa2 {[%clk 0:02:09]} 12. Rb1 {[%clk 0:00:39]}  Nab4 {[%clk 0:01:56]} 13. Nc5 {[%clk 0:00:23]}  b6 {[%clk 0:01:19]} 14. Bb5 {[%clk 0:00:16]}  Nc2+ {[%clk 0:00:59]} 15. Kd1 {[%clk 0:00:14]}  Nxd4 {[%clk 0:01:00]} 16. Ba4 {[%clk 0:00:04]}  bxc5 {[%clk 0:00:56]} 17. Nb3 {[%clk 0:00:05]}  Bd7 {[%clk 0:00:31]} 18. Nxc5 {[%clk 0:00:05]}  O-O-O {[%clk 0:00:17]} 19. Na6 {[%clk 0:00:04]}  e5 {[%clk 0:00:15]} 20. Be3 {[%clk 0:00:04]}  Bd6 {[%clk 0:00:11]} 21. Kd2 {[%clk 0:00:05]}  f5 {[%clk 0:00:03]} 22. Rhc1 {[%clk 0:00:05]}  f4 {[%clk 0:00:03]} 23. Bxd4 {[%clk 0:00:05]}  exd4 {[%clk 0:00:04]} 24. Rb5 {[%clk 0:00:03]}  f3 {[%clk 0:00:03]} 25. g3 {[%clk 0:00:04]}  Rhe8 {[%clk 0:00:03]} 26. Rxd5 {[%clk 0:00:04]}  Re2+ {[%clk 0:00:02]} 27. Kd3 {[%clk 0:00:05]} 1-0


[Site "https://www.chess.com"]

[Event "Titled Tuesday Blitz November 16 2021"]
[White "Drygalov, Sergey"]
[Black "Punin, Andrii"]
[WhiteFideId "24171743"]
[BlackFideId "14112639"]
[WhiteElo "2514"]
[BlackElo "2357"]
[Result "1/2-1/2"]
[Round "02"]
[TimeControl "180+1"]
[Date "2021.11.16"]
[WhiteClock "0:00:17"]
[BlackClock "0:00:16"]

1. e4 {[%clk 0:02:57]}  c6 {[%clk 0:02:59]} 2. d4 {[%clk 0:02:49]}  d5 {[%clk 0:02:59]} 3. e5 {[%clk 0:02:49]}  Bf5 {[%clk 0:02:58]} 4. Nf3 {[%clk 0:02:49]}  e6 {[%clk 0:02:58]} 5. Be2 {[%clk 0:02:50]}  c5 {[%clk 0:02:58]} 6. c4 {[%clk 0:02:41]}  dxc4 {[%clk 0:02:33]} 7. O-O {[%clk 0:02:00]}  Nc6 {[%clk 0:02:32]} 8. Be3 {[%clk 0:02:00]}  cxd4 {[%clk 0:02:27]} 9. Nxd4 {[%clk 0:02:01]}  Nxd4 {[%clk 0:02:26]} 10. Bxd4 {[%clk 0:02:01]}  Ne7 {[%clk 0:02:24]} 11. Bxc4 {[%clk 0:01:57]}  Nc6 {[%clk 0:02:24]} 12. Bb5 {[%clk 0:01:57]}  Be7 {[%clk 0:01:54]} 13. Nc3 {[%clk 0:01:54]}  O-O {[%clk 0:01:54]} 14. Bxc6 {[%clk 0:01:49]}  bxc6 {[%clk 0:01:55]} 15. Be3 {[%clk 0:01:50]}  Bd3 {[%clk 0:01:39]} 16. Re1 {[%clk 0:01:49]}  c5 {[%clk 0:01:40]} 17. Qf3 {[%clk 0:01:39]}  c4 {[%clk 0:01:38]} 18. Rad1 {[%clk 0:01:39]}  Qa5 {[%clk 0:01:24]} 19. Bd2 {[%clk 0:01:39]}  Bb4 {[%clk 0:01:14]} 20. a3 {[%clk 0:01:34]}  Bxc3 {[%clk 0:01:13]} 21. Bxc3 {[%clk 0:01:35]}  Qb6 {[%clk 0:01:04]} 22. h4 {[%clk 0:01:33]}  Rad8 {[%clk 0:01:01]} 23. h5 {[%clk 0:01:32]}  h6 {[%clk 0:01:01]} 24. Qf4 {[%clk 0:01:27]}  Rd5 {[%clk 0:00:57]} 25. Re3 {[%clk 0:01:27]}  Qb7 {[%clk 0:00:47]} 26. Rg3 {[%clk 0:01:22]}  Kh8 {[%clk 0:00:46]} 27. Re1 {[%clk 0:01:21]}  Rg8 {[%clk 0:00:29]} 28. Ree3 {[%clk 0:01:17]}  Rd7 {[%clk 0:00:25]} 29. Bb4 {[%clk 0:00:41]}  Qd5 {[%clk 0:00:20]} 30. Rg4 {[%clk 0:00:21]}  Bf5 {[%clk 0:00:20]} 31. Rh4 {[%clk 0:00:19]}  Qd1+ {[%clk 0:00:20]} 32. Kh2 {[%clk 0:00:19]}  Qf1 {[%clk 0:00:18]} 33. Re1 {[%clk 0:00:18]}  Qd3 {[%clk 0:00:17]} 34. Qxc4 {[%clk 0:00:19]}  Qxc4 {[%clk 0:00:17]} 35. Rxc4 {[%clk 0:00:20]}  Bd3 {[%clk 0:00:16]} 36. Rc3 {[%clk 0:00:19]}  Rgd8 {[%clk 0:00:16]} 37. f3 {[%clk 0:00:19]}  a6 {[%clk 0:00:16]} 38. Ba5 {[%clk 0:00:19]}  Rb8 {[%clk 0:00:15]} 39. Rd1 {[%clk 0:00:20]}  Bb5 {[%clk 0:00:13]} 40. Rxd7 {[%clk 0:00:20]}  Bxd7 {[%clk 0:00:14]} 41. Rc7 {[%clk 0:00:21]}  Be8 {[%clk 0:00:14]} 42. Bb4 {[%clk 0:00:21]}  Kg8 {[%clk 0:00:14]} 43. Bc3 {[%clk 0:00:21]}  Bb5 {[%clk 0:00:14]} 44. g4 {[%clk 0:00:20]}  Rd8 {[%clk 0:00:14]} 45. Kg3 {[%clk 0:00:20]}  Re8 {[%clk 0:00:13]} 46. Kf4 {[%clk 0:00:20]}  Rd8 {[%clk 0:00:14]} 47. Bb4 {[%clk 0:00:17]}  Re8 {[%clk 0:00:14]} 48. Bd6 {[%clk 0:00:17]}  Rd8 {[%clk 0:00:14]} 49. g5 {[%clk 0:00:17]}  hxg5+ {[%clk 0:00:14]} 50. Kxg5 {[%clk 0:00:18]}  Be2 {[%clk 0:00:13]} 51. f4 {[%clk 0:00:17]}  Bd3 {[%clk 0:00:14]} 52. h6 {[%clk 0:00:17]}  gxh6+ {[%clk 0:00:13]} 53. Kxh6 {[%clk 0:00:18]}  Re8 {[%clk 0:00:13]} 54. Kg5 {[%clk 0:00:18]}  Kg7 {[%clk 0:00:12]} 55. Be7 {[%clk 0:00:18]}  Rg8 {[%clk 0:00:11]} 56. Bf6+ {[%clk 0:00:18]}  Kh7+ {[%clk 0:00:11]} 57. Kh5 {[%clk 0:00:18]}  Be2+ {[%clk 0:00:10]} 58. Kh4 {[%clk 0:00:18]}  Kg6 {[%clk 0:00:11]} 59. f5+ {[%clk 0:00:17]}  Kxf5 {[%clk 0:00:11]} 60. Rxf7 {[%clk 0:00:17]}  Ke4 {[%clk 0:00:11]} 61. Kh3 {[%clk 0:00:14]}  Rg1 {[%clk 0:00:10]} 62. b4 {[%clk 0:00:13]}  Bf3 {[%clk 0:00:10]} 63. Rg7 {[%clk 0:00:11]}  Rxg7 {[%clk 0:00:10]} 64. Bxg7 {[%clk 0:00:12]}  Be2 {[%clk 0:00:10]} 65. Kg3 {[%clk 0:00:12]}  Kd5 {[%clk 0:00:10]} 66. Kf4 {[%clk 0:00:12]}  Kc4 {[%clk 0:00:10]} 67. Bf8 {[%clk 0:00:12]}  Kb3 {[%clk 0:00:10]} 68. Ke3 {[%clk 0:00:12]}  Bb5 {[%clk 0:00:10]} 69. Kd4 {[%clk 0:00:12]}  Kxa3 {[%clk 0:00:10]} 70. Kc5 {[%clk 0:00:13]}  Ka4 {[%clk 0:00:10]} 71. Kb6 {[%clk 0:00:13]}  Bc4 {[%clk 0:00:10]} 72. Bd6 {[%clk 0:00:13]}  Bb5 {[%clk 0:00:10]} 73. Kc7 {[%clk 0:00:13]}  Bc4 {[%clk 0:00:10]} 74. Kd7 {[%clk 0:00:14]}  Kb5 {[%clk 0:00:10]} 75. Ke7 {[%clk 0:00:14]}  Bd5 {[%clk 0:00:11]} 76. Kd7 {[%clk 0:00:14]}  Bc4 {[%clk 0:00:11]} 77. Kc7 {[%clk 0:00:14]}  Bd5 {[%clk 0:00:12]} 78. Kd8 {[%clk 0:00:12]}  Bc4 {[%clk 0:00:12]} 79. Ke7 {[%clk 0:00:12]}  Bd5 {[%clk 0:00:12]} 80. Kf6 {[%clk 0:00:13]}  Bc4 {[%clk 0:00:13]} 81. Kg5 {[%clk 0:00:13]}  Bd5 {[%clk 0:00:13]} 82. Kf4 {[%clk 0:00:14]}  Bc4 {[%clk 0:00:13]} 83. Ke3 {[%clk 0:00:14]}  Bd5 {[%clk 0:00:13]} 84. Kd4 {[%clk 0:00:14]}  Bc4 {[%clk 0:00:13]} 85. Kc3 {[%clk 0:00:15]}  Bd5 {[%clk 0:00:14]} 86. Bc5 {[%clk 0:00:15]}  Bc4 {[%clk 0:00:14]} 87. Bd6 {[%clk 0:00:16]}  Bd5 {[%clk 0:00:14]} 88. Bc7 {[%clk 0:00:16]}  Bc4 {[%clk 0:00:14]} 89. Ba5 {[%clk 0:00:17]}  Bd5 {[%clk 0:00:15]} 90. Kd3 {[%clk 0:00:15]}  Bc4+ {[%clk 0:00:15]} 91. Kd4 {[%clk 0:00:13]}  Bd5 {[%clk 0:00:15]} 92. Ke3 {[%clk 0:00:14]}  Bc4 {[%clk 0:00:15]} 93. Kf4 {[%clk 0:00:15]}  Bd5 {[%clk 0:00:15]} 94. Kg5 {[%clk 0:00:16]}  Bc4 {[%clk 0:00:16]} 95. Kf6 {[%clk 0:00:17]}  Bd5 {[%clk 0:00:16]} 96. Ke7 {[%clk 0:00:17]}  Bc4 {[%clk 0:00:16]} 1/2-1/2


[Site "https://www.chess.com"]

[Event "Titled Tuesday Blitz November 16 2021"]
[White "Espinosa Veloz, Ermes"]
[Black "Triapishko, Alexandr"]
[WhiteFideId "3507424"]
[BlackFideId "14122286"]
[WhiteElo "2333"]
[BlackElo "2479"]
[Result "0-1"]
[Round "02"]
[TimeControl "180+1"]
[Date "2021.11.16"]
[WhiteClock "0:00:23"]
[BlackClock "0:00:06"]

1. e4 {[%clk 0:03:00]}  c5 {[%clk 0:02:49]} 2. Nf3 {[%clk 0:03:00]}  Nc6 {[%clk 0:02:49]} 3. Bb5 {[%clk 0:03:00]}  g6 {[%clk 0:02:49]} 4. O-O {[%clk 0:02:59]}  Bg7 {[%clk 0:02:49]} 5. Re1 {[%clk 0:03:00]}  e5 {[%clk 0:02:46]} 6. b4 {[%clk 0:02:58]}  Nxb4 {[%clk 0:02:37]} 7. Bb2 {[%clk 0:02:56]}  a6 {[%clk 0:02:23]} 8. Bc4 {[%clk 0:02:52]}  b5 {[%clk 0:02:08]} 9. Bf1 {[%clk 0:02:23]}  Nc6 {[%clk 0:02:05]} 10. a4 {[%clk 0:02:19]}  b4 {[%clk 0:02:05]} 11. Bc4 {[%clk 0:02:14]}  Nge7 {[%clk 0:02:02]} 12. Ng5 {[%clk 0:02:13]}  O-O {[%clk 0:02:00]} 13. Qf3 {[%clk 0:02:11]}  Qe8 {[%clk 0:01:57]} 14. Qg3 {[%clk 0:02:00]}  d6 {[%clk 0:01:36]} 15. d3 {[%clk 0:01:59]}  h6 {[%clk 0:01:33]} 16. Nf3 {[%clk 0:01:58]}  Be6 {[%clk 0:01:32]} 17. Nbd2 {[%clk 0:01:57]}  Kh8 {[%clk 0:01:30]} 18. c3 {[%clk 0:01:49]}  a5 {[%clk 0:01:28]} 19. Nf1 {[%clk 0:01:41]}  Bxc4 {[%clk 0:01:24]} 20. dxc4 {[%clk 0:01:42]}  f5 {[%clk 0:01:25]} 21. exf5 {[%clk 0:01:33]}  gxf5 {[%clk 0:01:24]} 22. cxb4 {[%clk 0:01:34]}  axb4 {[%clk 0:01:22]} 23. Rad1 {[%clk 0:01:27]}  Rd8 {[%clk 0:01:13]} 24. Nh4 {[%clk 0:01:14]}  f4 {[%clk 0:00:56]} 25. Qg4 {[%clk 0:01:13]}  Na5 {[%clk 0:00:54]} 26. Nd2 {[%clk 0:01:12]}  Qd7 {[%clk 0:00:46]} 27. Qe2 {[%clk 0:01:09]}  Qe6 {[%clk 0:00:38]} 28. Rc1 {[%clk 0:01:09]}  Bf6 {[%clk 0:00:34]} 29. Nhf3 {[%clk 0:01:08]}  Rg8 {[%clk 0:00:32]} 30. Ne4 {[%clk 0:01:03]}  Bg7 {[%clk 0:00:28]} 31. Red1 {[%clk 0:01:00]}  Nf5 {[%clk 0:00:27]} 32. Kh1 {[%clk 0:00:57]}  Qg6 {[%clk 0:00:24]} 33. g3 {[%clk 0:00:53]}  Nd4 {[%clk 0:00:20]} 34. Bxd4 {[%clk 0:00:51]}  exd4 {[%clk 0:00:21]} 35. Nh4 {[%clk 0:00:49]}  Qf7 {[%clk 0:00:14]} 36. Qf3 {[%clk 0:00:46]}  Rde8 {[%clk 0:00:07]} 37. Re1 {[%clk 0:00:45]}  Nxc4 {[%clk 0:00:07]} 38. Rxc4 {[%clk 0:00:22]}  Qxc4 {[%clk 0:00:07]} 39. Ng6+ {[%clk 0:00:21]}  Kh7 {[%clk 0:00:07]} 40. Qh5 {[%clk 0:00:22]}  Rxe4 {[%clk 0:00:07]} 41. Rxe4 {[%clk 0:00:23]}  Qf1# {[%clk 0:00:06]} 0-1


[Site "https://www.chess.com"]

[Event "Titled Tuesday Blitz November 16 2021"]
[White "Gurevich, Dmitry"]
[Black "Tsydypov, Zhamsaran"]
[WhiteFideId "2000407"]
[BlackFideId "4108566"]
[WhiteElo "2506"]
[BlackElo "2614"]
[Result "1-0"]
[Round "02"]
[TimeControl "180+1"]
[Date "2021.11.16"]
[WhiteClock "0:00:26"]
[BlackClock "0:00:36"]

1. d4 {[%clk 0:03:00]}  Nf6 {[%clk 0:02:59]} 2. c4 {[%clk 0:02:59]}  e6 {[%clk 0:02:59]} 3. Nf3 {[%clk 0:02:58]}  Bb4+ {[%clk 0:02:58]} 4. Bd2 {[%clk 0:02:57]}  Be7 {[%clk 0:02:56]} 5. g3 {[%clk 0:02:55]}  O-O {[%clk 0:02:55]} 6. Bg2 {[%clk 0:02:55]}  d5 {[%clk 0:02:53]} 7. Qc2 {[%clk 0:02:54]}  c5 {[%clk 0:02:49]} 8. dxc5 {[%clk 0:02:50]}  Bxc5 {[%clk 0:02:48]} 9. cxd5 {[%clk 0:02:41]}  Qb6 {[%clk 0:02:47]} 10. O-O {[%clk 0:02:37]}  exd5 {[%clk 0:02:41]} 11. Nc3 {[%clk 0:02:34]}  Be7 {[%clk 0:02:36]} 12. Bg5 {[%clk 0:02:29]}  Be6 {[%clk 0:02:35]} 13. Rad1 {[%clk 0:02:17]}  Nc6 {[%clk 0:02:35]} 14. Be3 {[%clk 0:02:12]}  Qa6 {[%clk 0:02:34]} 15. Nd4 {[%clk 0:02:11]}  Rfc8 {[%clk 0:02:21]} 16. Nxe6 {[%clk 0:02:02]}  fxe6 {[%clk 0:02:19]} 17. Bh3 {[%clk 0:01:55]}  Ne5 {[%clk 0:02:18]} 18. Qb3 {[%clk 0:01:52]}  Nc4 {[%clk 0:01:59]} 19. Bg5 {[%clk 0:01:48]}  Rc6 {[%clk 0:01:59]} 20. e4 {[%clk 0:01:33]}  Rb6 {[%clk 0:01:59]} 21. Qa4 {[%clk 0:01:33]}  Nxb2 {[%clk 0:01:42]} 22. Qxa6 {[%clk 0:01:32]}  bxa6 {[%clk 0:01:41]} 23. Rb1 {[%clk 0:01:30]}  Kf7 {[%clk 0:01:04]} 24. exd5 {[%clk 0:01:22]}  Nxd5 {[%clk 0:01:01]} 25. Nxd5 {[%clk 0:01:17]}  exd5 {[%clk 0:01:01]} 26. Bxe7 {[%clk 0:01:15]}  Kxe7 {[%clk 0:01:01]} 27. Rfc1 {[%clk 0:01:11]}  Nc4 {[%clk 0:01:00]} 28. Re1+ {[%clk 0:01:07]}  Kd6 {[%clk 0:01:01]} 29. Rbd1 {[%clk 0:01:04]}  Ne5 {[%clk 0:00:52]} 30. Rxd5+ {[%clk 0:00:41]}  Kxd5 {[%clk 0:00:50]} 31. Bg2+ {[%clk 0:00:41]}  Kd4 {[%clk 0:00:51]} 32. Bxa8 {[%clk 0:00:42]}  Rb2 {[%clk 0:00:50]} 33. Re4+ {[%clk 0:00:40]}  Kc3 {[%clk 0:00:45]} 34. Rxe5 {[%clk 0:00:39]}  Rxa2 {[%clk 0:00:45]} 35. Re7 {[%clk 0:00:38]}  g5 {[%clk 0:00:44]} 36. Rxh7 {[%clk 0:00:37]}  a5 {[%clk 0:00:45]} 37. Rxa7 {[%clk 0:00:35]}  a4 {[%clk 0:00:45]} 38. Bf3 {[%clk 0:00:31]}  a3 {[%clk 0:00:45]} 39. Kg2 {[%clk 0:00:28]}  Kd4 {[%clk 0:00:44]} 40. h4 {[%clk 0:00:25]}  gxh4 {[%clk 0:00:44]} 41. gxh4 {[%clk 0:00:26]}  Ke5 {[%clk 0:00:36]} 42. h5 {[%clk 0:00:26]} 1-0


[Site "https://www.chess.com"]

[Event "Titled Tuesday Blitz November 16 2021"]
[White "Gurvich, Vitaly"]
[Black "Zhigalko, Sergei"]
[WhiteFideId "24164852"]
[BlackFideId "13502956"]
[WhiteElo "2275"]
[BlackElo "2662"]
[Result "0-1"]
[Round "02"]
[TimeControl "180+1"]
[Date "2021.11.16"]
[WhiteClock "0:02:06"]
[BlackClock "0:01:44"]

1. e4 {[%clk 0:03:00]}  c5 {[%clk 0:03:00]} 2. Nf3 {[%clk 0:02:59]}  Nc6 {[%clk 0:03:00]} 3. d4 {[%clk 0:02:57]}  cxd4 {[%clk 0:03:01]} 4. Nxd4 {[%clk 0:02:58]}  Nf6 {[%clk 0:03:01]} 5. Nc3 {[%clk 0:02:56]}  e5 {[%clk 0:03:01]} 6. Ndb5 {[%clk 0:02:56]}  d6 {[%clk 0:03:00]} 7. Bg5 {[%clk 0:02:56]}  a6 {[%clk 0:03:00]} 8. Na3 {[%clk 0:02:54]}  b5 {[%clk 0:03:00]} 9. Nd5 {[%clk 0:02:54]}  Be7 {[%clk 0:03:00]} 10. Bxf6 {[%clk 0:02:54]}  Bxf6 {[%clk 0:03:01]} 11. c3 {[%clk 0:02:55]}  Bg5 {[%clk 0:03:00]} 12. g3 {[%clk 0:02:54]}  O-O {[%clk 0:02:59]} 13. h4 {[%clk 0:02:54]}  Bh6 {[%clk 0:02:59]} 14. Nc2 {[%clk 0:02:52]}  Ne7 {[%clk 0:02:56]} 15. Ncb4 {[%clk 0:02:50]}  a5 {[%clk 0:02:40]} 16. Nxe7+ {[%clk 0:02:49]}  Qxe7 {[%clk 0:02:41]} 17. Nd5 {[%clk 0:02:49]}  Qb7 {[%clk 0:02:41]} 18. Bg2 {[%clk 0:02:49]}  Be6 {[%clk 0:02:41]} 19. O-O {[%clk 0:02:44]}  Rab8 {[%clk 0:02:41]} 20. Qd3 {[%clk 0:02:42]}  Bxd5 {[%clk 0:02:41]} 21. exd5 {[%clk 0:02:42]}  f5 {[%clk 0:02:41]} 22. a4 {[%clk 0:02:41]}  b4 {[%clk 0:02:39]} 23. c4 {[%clk 0:02:41]}  Qb6 {[%clk 0:02:35]} 24. Kh1 {[%clk 0:02:40]}  e4 {[%clk 0:02:34]} 25. Qe2 {[%clk 0:02:40]}  Rbe8 {[%clk 0:02:28]} 26. b3 {[%clk 0:02:40]}  f4 {[%clk 0:02:11]} 27. Bxe4 {[%clk 0:02:27]}  Qd4 {[%clk 0:02:09]} 28. Rae1 {[%clk 0:02:27]}  fxg3 {[%clk 0:02:09]} 29. fxg3 {[%clk 0:02:25]}  Rxf1+ {[%clk 0:02:05]} 30. Qxf1 {[%clk 0:02:06]}  Rxe4 {[%clk 0:02:02]} 31. Rd1 {[%clk 0:02:06]}  Qe5 {[%clk 0:01:44]} 0-1


[Site "https://www.chess.com"]

[Event "Titled Tuesday Blitz November 16 2021"]
[White "Liyanage, Ranindu Dilshan"]
[Black "Martinez Alcantara, Jose Eduardo"]
[WhiteFideId "9915834"]
[BlackFideId "3805662"]
[WhiteElo "1839"]
[BlackElo "2690"]
[Result "1-0"]
[Round "02"]
[TimeControl "180+1"]
[Date "2021.11.16"]
[WhiteClock "0:00:13"]
[BlackClock "0:00:05"]

1. e4 {[%clk 0:03:00]}  c5 {[%clk 0:02:57]} 2. Nf3 {[%clk 0:03:00]}  d6 {[%clk 0:02:58]} 3. d4 {[%clk 0:03:01]}  cxd4 {[%clk 0:02:58]} 4. Nxd4 {[%clk 0:03:02]}  Nf6 {[%clk 0:02:58]} 5. Nc3 {[%clk 0:03:02]}  a6 {[%clk 0:02:58]} 6. h3 {[%clk 0:03:03]}  e5 {[%clk 0:02:57]} 7. Nb3 {[%clk 0:03:03]}  Be7 {[%clk 0:02:54]} 8. g4 {[%clk 0:03:02]}  h6 {[%clk 0:02:51]} 9. Be3 {[%clk 0:03:02]}  Nbd7 {[%clk 0:02:45]} 10. a4 {[%clk 0:03:01]}  Nf8 {[%clk 0:02:44]} 11. a5 {[%clk 0:02:58]}  Be6 {[%clk 0:02:39]} 12. Nd5 {[%clk 0:02:29]}  Nxd5 {[%clk 0:01:51]} 13. exd5 {[%clk 0:02:29]}  Bd7 {[%clk 0:01:49]} 14. Qd2 {[%clk 0:02:20]}  Ng6 {[%clk 0:01:47]} 15. Qb4 {[%clk 0:02:19]}  Qc8 {[%clk 0:01:36]} 16. Bd3 {[%clk 0:02:17]}  O-O {[%clk 0:01:36]} 17. O-O-O {[%clk 0:02:08]}  Nh4 {[%clk 0:01:21]} 18. Kb1 {[%clk 0:01:57]}  f5 {[%clk 0:01:06]} 19. gxf5 {[%clk 0:01:51]}  Bxf5 {[%clk 0:01:07]} 20. Rhg1 {[%clk 0:01:22]}  Bxd3 {[%clk 0:01:03]} 21. Rxd3 {[%clk 0:01:22]}  Nf5 {[%clk 0:00:51]} 22. Rc3 {[%clk 0:01:14]}  Qd7 {[%clk 0:00:51]} 23. Qg4 {[%clk 0:01:15]}  Rf6 {[%clk 0:00:25]} 24. Nd2 {[%clk 0:01:09]}  Bf8 {[%clk 0:00:21]} 25. Ne4 {[%clk 0:01:08]}  Rf7 {[%clk 0:00:21]} 26. Bxh6 {[%clk 0:00:58]}  Rc8 {[%clk 0:00:22]} 27. Rxc8 {[%clk 0:00:43]}  Qxc8 {[%clk 0:00:23]} 28. Bd2 {[%clk 0:00:43]}  Qd8 {[%clk 0:00:16]} 29. Ng5 {[%clk 0:00:36]}  Rf6 {[%clk 0:00:12]} 30. Ne6 {[%clk 0:00:35]}  Qe8 {[%clk 0:00:10]} 31. Bg5 {[%clk 0:00:33]}  Rf7 {[%clk 0:00:11]} 32. Nd8 {[%clk 0:00:31]}  Nh6 {[%clk 0:00:07]} 33. Qe6 {[%clk 0:00:23]}  Qxe6 {[%clk 0:00:03]} 34. dxe6 {[%clk 0:00:23]}  Rxf2 {[%clk 0:00:03]} 35. Bxh6 {[%clk 0:00:20]}  Kh7 {[%clk 0:00:03]} 36. Bg5 {[%clk 0:00:18]}  e4 {[%clk 0:00:02]} 37. Bh4 {[%clk 0:00:14]}  Rf3 {[%clk 0:00:02]} 38. e7 {[%clk 0:00:14]}  Bxe7 {[%clk 0:00:02]} 39. Bxe7 {[%clk 0:00:15]}  e3 {[%clk 0:00:03]} 40. Re1 {[%clk 0:00:14]}  Rxh3 {[%clk 0:00:03]} 41. Bg5 {[%clk 0:00:15]}  Kg6 {[%clk 0:00:04]} 42. Bxe3 {[%clk 0:00:15]}  Kf5 {[%clk 0:00:04]} 43. Bd2 {[%clk 0:00:14]}  Rh2 {[%clk 0:00:04]} 44. Kc1 {[%clk 0:00:13]}  g5 {[%clk 0:00:05]} 45. Nf7 {[%clk 0:00:14]}  g4 {[%clk 0:00:06]} 46. Nxd6+ {[%clk 0:00:14]}  Kg6 {[%clk 0:00:07]} 47. Rg1 {[%clk 0:00:13]}  Kh5 {[%clk 0:00:05]} 48. Ne4 {[%clk 0:00:14]}  Kh4 {[%clk 0:00:04]} 49. Be1+ {[%clk 0:00:13]}  Kh5 {[%clk 0:00:05]} 50. Nf6+ {[%clk 0:00:14]}  Kg5 {[%clk 0:00:05]} 51. Nxg4 {[%clk 0:00:13]} 1-0


[Site "https://www.chess.com"]

[Event "Titled Tuesday Blitz November 16 2021"]
[White "Perez Gormaz, Matias"]
[Black "Tahbaz, Arash"]
[WhiteFideId "3406342"]
[BlackFideId "12528846"]
[WhiteElo "2352"]
[BlackElo "2377"]
[Result "0-1"]
[Round "02"]
[TimeControl "180+1"]
[Date "2021.11.16"]
[WhiteClock "0:00:01"]
[BlackClock "0:00:27"]

1. e4 {[%clk 0:02:20]}  c5 {[%clk 0:02:57]} 2. Nf3 {[%clk 0:02:20]}  g6 {[%clk 0:02:57]} 3. g3 {[%clk 0:02:15]}  Bg7 {[%clk 0:02:57]} 4. Bg2 {[%clk 0:02:16]}  Nc6 {[%clk 0:02:57]} 5. O-O {[%clk 0:02:17]}  d6 {[%clk 0:02:57]} 6. c3 {[%clk 0:02:17]}  e5 {[%clk 0:02:57]} 7. a3 {[%clk 0:02:17]}  a5 {[%clk 0:02:55]} 8. a4 {[%clk 0:02:17]}  Nge7 {[%clk 0:02:54]} 9. d3 {[%clk 0:02:17]}  O-O {[%clk 0:02:54]} 10. Na3 {[%clk 0:02:18]}  h6 {[%clk 0:02:54]} 11. Nb5 {[%clk 0:02:19]}  Be6 {[%clk 0:02:47]} 12. Nd2 {[%clk 0:02:17]}  d5 {[%clk 0:02:46]} 13. exd5 {[%clk 0:02:16]}  Bxd5 {[%clk 0:02:44]} 14. Nc4 {[%clk 0:02:12]}  Bxg2 {[%clk 0:02:21]} 15. Kxg2 {[%clk 0:02:13]}  Qd5+ {[%clk 0:02:08]} 16. Qf3 {[%clk 0:02:13]}  Qxf3+ {[%clk 0:02:08]} 17. Kxf3 {[%clk 0:02:14]}  Rad8 {[%clk 0:02:06]} 18. Rd1 {[%clk 0:02:11]}  f5 {[%clk 0:02:04]} 19. Be3 {[%clk 0:02:10]}  f4 {[%clk 0:01:41]} 20. gxf4 {[%clk 0:01:33]}  Nd5 {[%clk 0:01:40]} 21. Bxc5 {[%clk 0:01:31]}  Rxf4+ {[%clk 0:01:38]} 22. Kg2 {[%clk 0:01:28]}  Rh4 {[%clk 0:01:07]} 23. Be3 {[%clk 0:01:24]}  e4 {[%clk 0:00:57]} 24. d4 {[%clk 0:00:39]}  Rf8 {[%clk 0:00:56]} 25. Nbd6 {[%clk 0:00:34]}  Nce7 {[%clk 0:00:49]} 26. Re1 {[%clk 0:00:28]}  Nf5 {[%clk 0:00:37]} 27. Bd2 {[%clk 0:00:28]}  Rg4+ {[%clk 0:00:29]} 28. Kh1 {[%clk 0:00:28]}  Nxd6 {[%clk 0:00:29]} 29. Nxd6 {[%clk 0:00:27]}  Rxf2 {[%clk 0:00:29]} 30. Nxe4 {[%clk 0:00:10]}  Rxe4 {[%clk 0:00:29]} 31. Rxe4 {[%clk 0:00:11]}  Rxd2 {[%clk 0:00:29]} 32. Rb1 {[%clk 0:00:10]}  g5 {[%clk 0:00:28]} 33. Re8+ {[%clk 0:00:10]}  Kh7 {[%clk 0:00:28]} 34. Rb8 {[%clk 0:00:10]}  b6 {[%clk 0:00:27]} 35. Rd8 {[%clk 0:00:09]}  Ne3 {[%clk 0:00:27]} 36. Rd6 {[%clk 0:00:08]}  Ng4 {[%clk 0:00:27]} 37. Rxb6 {[%clk 0:00:06]}  Nxh2 {[%clk 0:00:27]} 38. Kg1 {[%clk 0:00:02]}  Nf3+ {[%clk 0:00:27]} 39. Kf1 {[%clk 0:00:03]}  g4 {[%clk 0:00:27]} 40. Rb7 {[%clk 0:00:01]}  g3 {[%clk 0:00:27]} 0-1


[Site "https://www.chess.com"]